[Event "Open Nuevo Centro. Jornada 2"]
[Site "Chess.com"]
[Date "2020.06.26"]
[Round "2"]
[White "Albuixech Sanz, Jorge"]
[Black "Ahullana Martí, Blai"]
[Result "1-0"]
[WhiteElo "1388"]
[BlackElo "764"]
[TimeControl "180+2"]
[EndTime "10:45:08 PDT"]
[Termination "Victoria de Gamyi2 por abandono"]

1. e4 {[%clk 0:03:01.9]} 1... e5 {[%clk 0:02:51]} 2. Nf3 {[%clk 0:03:01.4]} 2...
Nc6 {[%clk 0:02:51.2]} 3. Nc3 {[%clk 0:03:01.5]} 3... Nf6 {[%clk 0:02:50.8]} 4.
d4 {[%clk 0:03:02.5]} 4... exd4 {[%clk 0:02:50.7]} 5. Nxd4 {[%clk 0:03:02.2]}
5... Nxd4 {[%clk 0:02:51.1]} 6. Qxd4 {[%clk 0:03:02.6]} 6... Ng4 {[%clk
0:02:46.3]} 7. Be2 {[%clk 0:02:48.6]} 7... Nf6 {[%clk 0:02:42.4]} 8. e5 {[%clk
0:02:45.7]} 8... Ng8 {[%clk 0:02:36.6]} 9. O-O {[%clk 0:02:43.7]} 9... Qg5
{[%clk 0:02:31]} 10. Bxg5 {[%clk 0:02:42.5]} 10... Be7 {[%clk 0:02:27.4]} 11.
Bxe7 {[%clk 0:02:37.9]} 11... Nxe7 {[%clk 0:02:29.3]} 12. e6 {[%clk 0:02:39]}
12... Nf5 {[%clk 0:02:28.7]} 13. exf7+ {[%clk 0:02:36.7]} 13... Kxf7 {[%clk
0:02:24.1]} 14. Bc4+ {[%clk 0:02:34.2]} 14... Kg6 {[%clk 0:02:22.2]} 15. Qg4+
{[%clk 0:02:31.8]} 15... Kf6 {[%clk 0:02:20.8]} 16. Ne4+ {[%clk 0:02:32]} 1

[Event "Open Nuevo Centro. Jornada 2"]
[Site "Chess.com"]
[Date "2020.06.26"]
[Round "2"]
[White "Zakharash, Georgii"]
[Black "Crevillen Abad, Clemente"]
[Result "0-1"]
[WhiteElo "1048"]
[BlackElo "1755"]
[TimeControl "180+2"]
[EndTime "10:45:20 PDT"]
[Termination "Victoria de Clementovich por jaque mate"]

1. d4 {[%clk 0:03:01.9]} 1... d5 {[%clk 0:02:59.9]} 2. Nf3 {[%clk 0:03:00.8]}
2... Nf6 {[%clk 0:02:58.9]} 3. e3 {[%clk 0:03:02]} 3... e6 {[%clk 0:02:48.4]} 4.
Bd3 {[%clk 0:03:03.4]} 4... c5 {[%clk 0:02:48.5]} 5. c3 {[%clk 0:03:00]} 5...
Bd6 {[%clk 0:02:39.2]} 6. O-O {[%clk 0:02:57.6]} 6... Qc7 {[%clk 0:02:37.4]} 7.
Nbd2 {[%clk 0:02:56.6]} 7... e5 {[%clk 0:02:30.3]} 8. dxe5 {[%clk 0:02:55.7]}
8... Bxe5 {[%clk 0:02:30.9]} 9. Nxe5 {[%clk 0:02:55.1]} 9... Qxe5 {[%clk
0:02:31.7]} 10. c4 {[%clk 0:02:54.5]} 10... O-O {[%clk 0:02:30]} 11. cxd5 {[%clk
0:02:53.6]} 11... Qxd5 {[%clk 0:02:30.2]} 12. b3 {[%clk 0:02:39.9]} 12... Rd8
{[%clk 0:02:17.6]} 13. Bb2 {[%clk 0:02:38.7]} 13... Qxd3 {[%clk 0:02:17.9]} 14.
Qb1 {[%clk 0:02:24.2]} 14... Qxb1 {[%clk 0:02:17.1]} 15. Rc1 {[%clk 0:02:23.6]}
15... Qxc1+ {[%clk 0:02:16.6]} 16. Bxc1 {[%clk 0:02:20]} 16... Nc6 {[%clk
0:02:15.9]} 17. Ne4 {[%clk 0:02:19.6]} 17... Nxe4 {[%clk 0:02:16]} 18. Rb1
{[%clk 0:02:17.9]} 18... Nb4 {[%clk 0:02:12.1]} 19. Rb2 {[%clk 0:02:13.5]} 19...
Rd1# {[%clk 0:02:11.3]} 0

[Event "Open Nuevo Centro. Jornada 2"]
[Site "Chess.com"]
[Date "2020.06.26"]
[Round "2"]
[White "Yeste Campos, Manuel"]
[Black "Donate Moreno, David"]
[Result "0-1"]
[WhiteElo "921"]
[BlackElo "1521"]
[TimeControl "180+2"]
[EndTime "10:45:58 PDT"]
[Termination "Victoria de sylar48 por jaque mate"]

1. e4 {[%clk 0:03:01.9]} 1... c6 {[%clk 0:02:58.8]} 2. d4 {[%clk 0:02:59.9]}
2... d5 {[%clk 0:02:58.6]} 3. e5 {[%clk 0:02:56.2]} 3... Bf5 {[%clk 0:02:58.4]}
4. Nf3 {[%clk 0:02:56]} 4... e6 {[%clk 0:02:58.9]} 5. Nc3 {[%clk 0:02:55.1]}
5... c5 {[%clk 0:02:57.8]} 6. Be2 {[%clk 0:02:51.2]} 6... Nc6 {[%clk 0:02:54.2]}
7. dxc5 {[%clk 0:02:46.9]} 7... Bxc5 {[%clk 0:02:53.9]} 8. O-O {[%clk
0:02:42.6]} 8... Nge7 {[%clk 0:02:53.4]} 9. Bd3 {[%clk 0:02:42.9]} 9... Bxd3
{[%clk 0:02:51.3]} 10. Qxd3 {[%clk 0:02:43.1]} 10... O-O {[%clk 0:02:50.9]} 11.
Bg5 {[%clk 0:02:30]} 11... Qc7 {[%clk 0:02:47.7]} 12. Rad1 {[%clk 0:02:14.1]}
12... Nxe5 {[%clk 0:02:45.3]} 13. Nxe5 {[%clk 0:02:13.4]} 13... Qxe5 {[%clk
0:02:47.2]} 14. Bxe7 {[%clk 0:02:13.8]} 14... Bxe7 {[%clk 0:02:46.4]} 15. Rfe1
{[%clk 0:02:13.9]} 15... Qc7 {[%clk 0:02:45]} 16. Qh3 {[%clk 0:02:05.5]} 16...
Bf6 {[%clk 0:02:44.2]} 17. Ne2 {[%clk 0:02:03.3]} 17... Qxc2 {[%clk 0:02:33.5]}
18. Rd2 {[%clk 0:01:55.3]} 18... Qxd2 {[%clk 0:02:32.7]} 19. Kf1 {[%clk
0:01:48.8]} 19... Rac8 {[%clk 0:02:29.2]} 20. Ng3 {[%clk 0:01:44.4]} 20... Rc1
{[%clk 0:02:26]} 21. Rxc1 {[%clk 0:01:42.9]} 21... Qxc1+ {[%clk 0:02:25.8]} 22.
Ke2 {[%clk 0:01:43.4]} 22... Qc2+ {[%clk 0:02:25.9]} 23. Kf1 {[%clk 0:01:43.9]}
23... Qd1# {[%clk 0:02:26.2]} 0

[Event "Open Nuevo Centro. Jornada 2"]
[Site "Chess.com"]
[Date "2020.06.26"]
[Round "2"]
[White "Gimenez Saiz, Jose Raul"]
[Black "Elenkov Olmo, Ivan"]
[Result "1-0"]
[WhiteElo "1534"]
[BlackElo "930"]
[TimeControl "180+2"]
[EndTime "10:46:23 PDT"]
[Termination "Victoria de rango013 por abandono"]

1. d4 {[%clk 0:03:00.1]} 1... d5 {[%clk 0:02:59.8]} 2. e3 {[%clk 0:03:01.3]}
2... Nc6 {[%clk 0:03:00]} 3. f4 {[%clk 0:03:01.5]} 3... Nf6 {[%clk 0:02:59.5]}
4. c3 {[%clk 0:03:01.3]} 4... Ne4 {[%clk 0:02:53]} 5. Bd3 {[%clk 0:03:01]} 5...
f5 {[%clk 0:02:51.8]} 6. Qh5+ {[%clk 0:02:57.1]} 6... g6 {[%clk 0:02:49.8]} 7.
Qe2 {[%clk 0:02:54.9]} 7... Be6 {[%clk 0:02:38.8]} 8. Nd2 {[%clk 0:02:53]} 8...
Qd7 {[%clk 0:02:27.8]} 9. Ngf3 {[%clk 0:02:52]} 9... O-O-O {[%clk 0:02:24]} 10.
Bb5 {[%clk 0:02:49.1]} 10... Bg7 {[%clk 0:02:05.7]} 11. Ne5 {[%clk 0:02:48]}
11... Nxe5 {[%clk 0:02:04.7]} 12. Bxd7+ {[%clk 0:02:47.3]} 12... Nxd7 {[%clk
0:02:03.8]} 13. Nxe4 {[%clk 0:02:45.7]} 13... dxe4 {[%clk 0:02:03.2]} 14. Bd2
{[%clk 0:02:44.9]} 14... Rdf8 {[%clk 0:01:27.7]} 15. c4 {[%clk 0:02:44.7]} 15...
Kb8 {[%clk 0:01:18.7]} 16. Bb4 {[%clk 0:02:41.8]} 16... Nb6 {[%clk 0:00:55.7]}
17. d5 {[%clk 0:02:39.7]} 17... Bf7 {[%clk 0:00:52.4]} 18. Bxe7 {[%clk
0:02:39.8]} 1

[Event "Open Nuevo Centro. Jornada 2"]
[Site "Chess.com"]
[Date "2020.06.26"]
[Round "2"]
[White "Montesinos Diaz, Luis"]
[Black "García Giménez, Santiago"]
[Result "0-1"]
[WhiteElo "1854"]
[BlackElo "1932"]
[TimeControl "180+2"]
[EndTime "10:47:02 PDT"]
[Termination "Victoria de Somaelfideitos por abandono"]

1. d4 {[%clk 0:03:01.9]} 1... Nf6 {[%clk 0:03:00.1]} 2. Nf3 {[%clk 0:03:02.2]}
2... g6 {[%clk 0:03:01]} 3. Bg5 {[%clk 0:03:01.3]} 3... Bg7 {[%clk 0:02:59.9]}
4. Nbd2 {[%clk 0:03:00.9]} 4... d5 {[%clk 0:02:57.8]} 5. c3 {[%clk 0:03:01.4]}
5... O-O {[%clk 0:02:59]} 6. Qc2 {[%clk 0:03:00.3]} 6... c5 {[%clk 0:02:58.4]}
7. e3 {[%clk 0:03:00.8]} 7... Nc6 {[%clk 0:02:59.5]} 8. Be2 {[%clk 0:02:59.2]}
8... b6 {[%clk 0:03:00.5]} 9. O-O {[%clk 0:02:59.8]} 9... Bb7 {[%clk 0:03:01.7]}
10. Rfe1 {[%clk 0:02:59.8]} 10... Rc8 {[%clk 0:02:50]} 11. Rad1 {[%clk
0:02:50.4]} 11... Qc7 {[%clk 0:02:38.5]} 12. Bf4 {[%clk 0:02:45.3]} 12... Qd7
{[%clk 0:02:25.1]} 13. Qb1 {[%clk 0:02:41.9]} 13... Rfd8 {[%clk 0:02:21.2]} 14.
Bb5 {[%clk 0:02:41.2]} 14... Nh5 {[%clk 0:02:17.2]} 15. Ne5 {[%clk 0:02:35.4]}
15... Qe6 {[%clk 0:02:12.9]} 16. Bxc6 {[%clk 0:02:17.4]} 16... Bxc6 {[%clk
0:02:14.8]} 17. Ndf3 {[%clk 0:02:18]} 17... f6 {[%clk 0:02:11]} 18. Nxc6 {[%clk
0:02:17.9]} 18... Qxc6 {[%clk 0:02:12.9]} 19. Bg3 {[%clk 0:02:17.4]} 19... Nxg3
{[%clk 0:02:13.4]} 20. hxg3 {[%clk 0:02:18.9]} 20... e5 {[%clk 0:02:14.1]} 21.
dxe5 {[%clk 0:02:19.2]} 21... fxe5 {[%clk 0:02:16]} 22. e4 {[%clk 0:02:20.5]}
22... d4 {[%clk 0:02:17]} 23. cxd4 {[%clk 0:02:21.5]} 23... cxd4 {[%clk
0:02:15.6]} 24. Rc1 {[%clk 0:02:19.7]} 24... Qb5 {[%clk 0:02:12.4]} 25. a3
{[%clk 0:02:15.3]} 25... Qb3 {[%clk 0:02:11.5]} 26. Nd2 {[%clk 0:02:12.9]} 26...
Qe6 {[%clk 0:02:06.9]} 27. Qd3 {[%clk 0:02:09.6]} 27... Bh6 {[%clk 0:02:05.9]}
28. Nf3 {[%clk 0:01:56]} 28... Bxc1 {[%clk 0:02:04.5]} 29. Qb5 {[%clk
0:01:50.5]} 29... d3 {[%clk 0:02:01.4]} 30. Nxe5 {[%clk 0:01:51]} 30... d2
{[%clk 0:01:59.4]} 31. Rd1 {[%clk 0:01:51.7]} 31... Rc5 {[%clk 0:01:56.3]} 0

[Event "Open Nuevo Centro. Jornada 2"]
[Site "Chess.com"]
[Date "2020.06.26"]
[Round "2"]
[White "Lloret Ramis, Juan José"]
[Black "Casado Andreu, David"]
[Result "1-0"]
[WhiteElo "1975"]
[BlackElo "1642"]
[TimeControl "180+2"]
[EndTime "10:47:09 PDT"]
[Termination "Victoria de Amiplim por abandono"]

1. c4 {[%clk 0:03:01.9]} 1... e5 {[%clk 0:02:59.9]} 2. Nc3 {[%clk 0:03:02.4]}
2... Nf6 {[%clk 0:03:01]} 3. Nf3 {[%clk 0:03:02.7]} 3... Nc6 {[%clk 0:03:01.2]}
4. e3 {[%clk 0:03:03.5]} 4... Bb4 {[%clk 0:02:52.8]} 5. Qc2 {[%clk 0:03:04.4]}
5... Bxc3 {[%clk 0:02:52.7]} 6. Qxc3 {[%clk 0:03:04.8]} 6... d6 {[%clk 0:02:54]}
7. d3 {[%clk 0:02:57]} 7... Bg4 {[%clk 0:02:50.3]} 8. Be2 {[%clk 0:02:58.1]}
8... e4 {[%clk 0:02:45.6]} 9. dxe4 {[%clk 0:02:53.2]} 9... O-O {[%clk 0:02:40]}
10. a3 {[%clk 0:02:27.2]} 10... a5 {[%clk 0:02:39.4]} 11. e5 {[%clk 0:02:04.7]}
11... dxe5 {[%clk 0:02:21.2]} 12. b3 {[%clk 0:01:37.2]} 12... e4 {[%clk
0:02:01.9]} 13. Nd4 {[%clk 0:01:33.8]} 13... Ne5 {[%clk 0:01:57.5]} 14. Bb2
{[%clk 0:00:58.8]} 14... Bxe2 {[%clk 0:01:56.4]} 15. Kxe2 {[%clk 0:00:59.8]}
15... Nd3 {[%clk 0:01:51.4]} 16. Rad1 {[%clk 0:00:52.7]} 16... c5 {[%clk
0:01:51]} 17. Nf5 {[%clk 0:00:46.6]} 17... Qc8 {[%clk 0:01:49.2]} 18. Ne7+
{[%clk 0:00:43.9]} 1

[Event "Open Nuevo Centro. Jornada 2"]
[Site "Chess.com"]
[Date "2020.06.26"]
[Round "2"]
[White "Rojo Everss, Noel"]
[Black "Álvarez Aranda, Jesús"]
[Result "0-1"]
[WhiteElo "769"]
[BlackElo "1348"]
[TimeControl "180+2"]
[EndTime "10:47:27 PDT"]
[Termination "Victoria de Toledanoribaroja por jaque mate"]

1. e4 {[%clk 0:03:01.9]} 1... e5 {[%clk 0:03:00.4]} 2. d4 {[%clk 0:02:59.3]}
2... exd4 {[%clk 0:02:59.6]} 3. Nf3 {[%clk 0:02:51.4]} 3... Nc6 {[%clk
0:02:57.7]} 4. Bg5 {[%clk 0:02:50.7]} 4... f6 {[%clk 0:02:57.4]} 5. Bc4 {[%clk
0:02:43.2]} 5... fxg5 {[%clk 0:02:52.6]} 6. Nxg5 {[%clk 0:02:41.2]} 6... Qxg5
{[%clk 0:02:52.7]} 7. Bb5 {[%clk 0:02:34.2]} 7... Qxg2 {[%clk 0:02:51.6]} 8. Rg1
{[%clk 0:02:31.9]} 8... Qxe4+ {[%clk 0:02:51.2]} 9. Qe2 {[%clk 0:02:29.3]} 9...
Qxe2+ {[%clk 0:02:50.7]} 10. Kxe2 {[%clk 0:02:29.1]} 10... Nb4 {[%clk
0:02:49.2]} 11. Re1 {[%clk 0:02:28.3]} 11... Nxc2 {[%clk 0:02:47.5]} 12. Kd2+
{[%clk 0:02:26.8]} 12... Nxe1 {[%clk 0:02:48.1]} 13. Nc3 {[%clk 0:02:26.4]}
13... Nf3+ {[%clk 0:02:45.4]} 14. Kd3 {[%clk 0:02:19.2]} 14... dxc3 {[%clk
0:02:46.1]} 15. bxc3 {[%clk 0:02:19]} 15... c6 {[%clk 0:02:46.5]} 16. Bc4 {[%clk
0:02:18.7]} 16... d5 {[%clk 0:02:47]} 17. Bb3 {[%clk 0:02:13.8]} 17... Bf5+
{[%clk 0:02:45.4]} 18. Ke3 {[%clk 0:02:12.6]} 18... Ne5 {[%clk 0:02:39.1]} 19.
Re1 {[%clk 0:02:08.4]} 19... O-O-O {[%clk 0:02:33.8]} 20. Kf4 {[%clk 0:02:03.9]}
20... Nd3+ {[%clk 0:02:30.4]} 21. Kf3 {[%clk 0:01:57.9]} 21... Nxe1+ {[%clk
0:02:30.9]} 22. Kf4 {[%clk 0:01:55.7]} 22... Bc2 {[%clk 0:02:30]} 23. Bxc2
{[%clk 0:01:51.4]} 23... Nxc2 {[%clk 0:02:30]} 24. Kg5 {[%clk 0:01:49.9]} 24...
Bd6 {[%clk 0:02:30.1]} 25. f4 {[%clk 0:01:49.1]} 25... Ne7 {[%clk 0:02:28.3]}
26. f5 {[%clk 0:01:46]} 26... h6+ {[%clk 0:02:23.2]} 27. Kh4 {[%clk 0:01:42.5]}
27... Nxf5+ {[%clk 0:02:23.2]} 28. Kg4 {[%clk 0:01:40.8]} 28... Nfe3+ {[%clk
0:02:20.9]} 29. Kh5 {[%clk 0:01:40.1]} 29... g6+ {[%clk 0:02:19.7]} 30. Kxg6
{[%clk 0:01:39.5]} 30... Rdg8+ {[%clk 0:02:19.9]} 31. Kf7 {[%clk 0:01:38.3]}
31... Kd7 {[%clk 0:02:17.8]} 32. Kf6 {[%clk 0:01:35.9]} 32... Rf8+ {[%clk
0:02:16.9]} 33. Kg7 {[%clk 0:01:35.8]} 33... Be5+ {[%clk 0:02:16.8]} 34. Kg6
{[%clk 0:01:35.7]} 34... Bxc3 {[%clk 0:02:16.9]} 35. Kh5 {[%clk 0:01:35.7]}
35... Rhg8 {[%clk 0:02:14.7]} 36. Kh4 {[%clk 0:01:34.8]} 36... Be1+ {[%clk
0:02:14.7]} 37. Kh3 {[%clk 0:01:33.9]} 37... Rf3# {[%clk 0:02:14.8]} 0

[Event "Open Nuevo Centro. Jornada 2"]
[Site "Chess.com"]
[Date "2020.06.26"]
[Round "2"]
[White "Sverdlik Roldán, Elías"]
[Black "Martínez Cuenca, Jose Andrés"]
[Result "0-1"]
[WhiteElo "382"]
[BlackElo "1078"]
[TimeControl "180+2"]
[EndTime "10:47:32 PDT"]
[Termination "Victoria de JoseAndres2008 por tiempo"]

1. e4 {[%clk 0:03:01.9]} 1... c5 {[%clk 0:02:57]} 2. Nf3 {[%clk 0:02:52.8]} 2...
g6 {[%clk 0:02:56.1]} 3. d4 {[%clk 0:02:53.7]} 3... cxd4 {[%clk 0:02:56]} 4.
Nxd4 {[%clk 0:02:54.2]} 4... Nc6 {[%clk 0:02:57.3]} 5. Nxc6 {[%clk 0:02:54.5]}
5... bxc6 {[%clk 0:02:59.2]} 6. Nc3 {[%clk 0:02:52.9]} 6... Bg7 {[%clk
0:02:57.7]} 7. Bd2 {[%clk 0:02:45.8]} 7... e6 {[%clk 0:02:56.1]} 8. f3 {[%clk
0:02:29.5]} 8... d5 {[%clk 0:02:45.6]} 9. exd5 {[%clk 0:02:29]} 9... cxd5 {[%clk
0:02:43.2]} 10. Be2 {[%clk 0:01:50.4]} 10... Nf6 {[%clk 0:02:39.7]} 11. Na4
{[%clk 0:01:38.9]} 11... Bd7 {[%clk 0:02:34]} 12. c3 {[%clk 0:01:35]} 12... Qa5
{[%clk 0:02:19.4]} 13. b3 {[%clk 0:01:16.6]} 13... Bxa4 {[%clk 0:02:11.8]} 14.
bxa4 {[%clk 0:01:17.1]} 14... O-O {[%clk 0:02:07.7]} 15. Bb5 {[%clk 0:01:07.7]}
15... Rab8 {[%clk 0:02:01.3]} 0

[Event "Open Nuevo Centro. Jornada 2"]
[Site "Chess.com"]
[Date "2020.06.26"]
[Round "2"]
[White "Valverde Alcaide, Miguel Alejandro"]
[Black "Denis Cazacu, Ioan"]
[Result "0-1"]
[WhiteElo "870"]
[BlackElo "1399"]
[TimeControl "180+2"]
[EndTime "10:47:33 PDT"]
[Termination "Victoria de TFdenis25 por jaque mate"]

1. e4 {[%clk 0:02:59.7]} 1... c5 {[%clk 0:03:00]} 2. Bc4 {[%clk 0:02:55.4]} 2...
Nc6 {[%clk 0:03:00.6]} 3. Nf3 {[%clk 0:02:54.9]} 3... g6 {[%clk 0:02:59]} 4. c3
{[%clk 0:02:55.7]} 4... Bg7 {[%clk 0:02:59.7]} 5. Ng5 {[%clk 0:02:54.5]} 5... e6
{[%clk 0:02:53.7]} 6. f4 {[%clk 0:02:43.7]} 6... d5 {[%clk 0:02:47.5]} 7. exd5
{[%clk 0:02:42.2]} 7... exd5 {[%clk 0:02:48.1]} 8. Bd3 {[%clk 0:02:43.2]} 8...
h6 {[%clk 0:02:39.8]} 9. Qe2+ {[%clk 0:02:43.7]} 9... Qe7 {[%clk 0:02:39.5]} 10.
Qxe7+ {[%clk 0:02:42.2]} 10... Ngxe7 {[%clk 0:02:38]} 11. Nf3 {[%clk 0:02:41.1]}
11... d4 {[%clk 0:02:37.5]} 12. cxd4 {[%clk 0:02:39.6]} 12... Nxd4 {[%clk
0:02:38.4]} 13. O-O {[%clk 0:02:36.9]} 13... c4 {[%clk 0:02:31.5]} 14. Bxc4
{[%clk 0:02:34.8]} 14... Nc2 {[%clk 0:02:32.6]} 15. Bb5+ {[%clk 0:02:32.1]}
15... Bd7 {[%clk 0:02:32.8]} 16. Bxd7+ {[%clk 0:02:31]} 16... Kxd7 {[%clk
0:02:34.7]} 17. Na3 {[%clk 0:02:26.9]} 17... Nxa1 {[%clk 0:02:35.3]} 18. d4
{[%clk 0:02:24.2]} 18... Rac8 {[%clk 0:02:29.2]} 19. Bd2 {[%clk 0:02:20.5]}
19... Nc2 {[%clk 0:02:30]} 20. Ne5+ {[%clk 0:02:15]} 20... Bxe5 {[%clk
0:02:28.2]} 21. fxe5 {[%clk 0:02:15.4]} 21... Nxa3 {[%clk 0:02:28.6]} 22. bxa3
{[%clk 0:02:15.2]} 22... Rc2 {[%clk 0:02:28.8]} 23. h4 {[%clk 0:02:14.6]} 23...
Rxd2 {[%clk 0:02:27.9]} 24. Rb1 {[%clk 0:02:12.3]} 24... b6 {[%clk 0:02:27.5]}
25. a4 {[%clk 0:02:00.7]} 25... Rxa2 {[%clk 0:02:27.6]} 26. Rb4 {[%clk
0:02:00.9]} 26... Nd5 {[%clk 0:02:27.5]} 27. Rb5 {[%clk 0:01:58.7]} 27... Nc3
{[%clk 0:02:28.1]} 28. Rb3 {[%clk 0:01:50.2]} 28... Nxa4 {[%clk 0:02:28.2]} 29.
Rf3 {[%clk 0:01:49.9]} 29... Ke6 {[%clk 0:02:27.7]} 30. d5+ {[%clk 0:01:49.4]}
30... Kxd5 {[%clk 0:02:28.8]} 31. Rxf7 {[%clk 0:01:49.8]} 31... Kxe5 {[%clk
0:02:27.9]} 32. Re7+ {[%clk 0:01:49.7]} 32... Kd6 {[%clk 0:02:28]} 33. Rxa7
{[%clk 0:01:50.1]} 33... Nc3 {[%clk 0:02:28.8]} 34. Rg7 {[%clk 0:01:48.4]} 34...
g5 {[%clk 0:02:27.5]} 35. Rg6+ {[%clk 0:01:49.2]} 35... Ke5 {[%clk 0:02:25.9]}
36. Rxb6 {[%clk 0:01:48.6]} 36... gxh4 {[%clk 0:02:18.3]} 37. Kh2 {[%clk
0:01:48.1]} 37... Rg8 {[%clk 0:02:17.5]} 38. Kh3 {[%clk 0:01:42.5]} 38... Raxg2
{[%clk 0:02:15.9]} 39. Rxh6 {[%clk 0:01:39.6]} 39... Ne4 {[%clk 0:02:10.9]} 40.
Rxh4 {[%clk 0:01:36.7]} 40... Nf2# {[%clk 0:02:10.2]} 0

[Event "Open Nuevo Centro. Jornada 2"]
[Site "Chess.com"]
[Date "2020.06.26"]
[Round "2"]
[White "Amorós Pérez, Manuel David"]
[Black "Hernández Tomás, Efrén"]
[Result "1-0"]
[WhiteElo "1665"]
[BlackElo "1036"]
[TimeControl "180+2"]
[EndTime "10:47:40 PDT"]
[Termination "Victoria de mpad1984 por abandono"]

1. e4 {[%clk 0:03:01.9]} 1... e5 {[%clk 0:03:00.3]} 2. Nf3 {[%clk 0:03:02.2]}
2... Nf6 {[%clk 0:03:00.4]} 3. Nc3 {[%clk 0:02:57.7]} 3... Nc6 {[%clk 0:03:00]}
4. Bc4 {[%clk 0:02:50.5]} 4... h6 {[%clk 0:02:57.7]} 5. d4 {[%clk 0:02:47.1]}
5... exd4 {[%clk 0:02:56.8]} 6. Nxd4 {[%clk 0:02:47.5]} 6... Nxd4 {[%clk
0:02:52.7]} 7. Qxd4 {[%clk 0:02:47.8]} 7... b6 {[%clk 0:02:53]} 8. O-O {[%clk
0:02:44.3]} 8... Bc5 {[%clk 0:02:51]} 9. Qd3 {[%clk 0:02:40.3]} 9... O-O {[%clk
0:02:43.8]} 10. Be3 {[%clk 0:02:38.4]} 10... Bxe3 {[%clk 0:02:41.8]} 11. Qxe3
{[%clk 0:02:34.9]} 11... Bb7 {[%clk 0:02:39.7]} 12. f3 {[%clk 0:02:32.8]} 12...
c6 {[%clk 0:02:36]} 13. Rad1 {[%clk 0:02:32.2]} 13... d5 {[%clk 0:02:31.4]} 14.
exd5 {[%clk 0:02:32.8]} 14... cxd5 {[%clk 0:02:31.2]} 15. Bb5 {[%clk 0:02:26.5]}
15... a6 {[%clk 0:02:15.3]} 16. Ba4 {[%clk 0:02:26.3]} 16... b5 {[%clk
0:02:15.5]} 17. Bb3 {[%clk 0:02:27.7]} 17... Re8 {[%clk 0:02:10.2]} 18. Qd2
{[%clk 0:02:26.7]} 18... Re5 {[%clk 0:01:55.1]} 19. Rfe1 {[%clk 0:02:26.5]}
19... Rg5 {[%clk 0:01:52]} 20. Re3 {[%clk 0:02:18.1]} 20... Qd6 {[%clk
0:01:39.9]} 21. Rd3 {[%clk 0:02:17.3]} 21... Rd8 {[%clk 0:01:39.3]} 22. Ne2
{[%clk 0:02:16]} 22... a5 {[%clk 0:01:28.4]} 23. a3 {[%clk 0:02:16.4]} 23... a4
{[%clk 0:01:29.2]} 24. Ba2 {[%clk 0:02:17.9]} 24... Ba6 {[%clk 0:01:27.4]} 25.
Nc3 {[%clk 0:02:15.4]} 25... b4 {[%clk 0:01:23.1]} 26. Rxd5 {[%clk 0:02:16.3]}
26... bxc3 {[%clk 0:01:23.8]} 27. Rxd6 {[%clk 0:02:16.7]} 27... cxd2 {[%clk
0:01:22.1]} 28. Rxd8+ {[%clk 0:02:17.4]} 28... Kh7 {[%clk 0:01:17.9]} 29. R1xd2
{[%clk 0:02:18.1]} 29... Nh5 {[%clk 0:01:12.2]} 30. R8d4 {[%clk 0:02:12.4]}
30... Bb7 {[%clk 0:01:05.5]} 31. Bxf7 {[%clk 0:02:09.6]} 31... Bxf3 {[%clk
0:01:04.5]} 32. Bxh5 {[%clk 0:02:10.2]} 32... Bxh5 {[%clk 0:01:01.7]} 33. Rd5
{[%clk 0:02:10.9]} 33... Bf3 {[%clk 0:01:01]} 34. Rxg5 {[%clk 0:02:11.5]} 1

[Event "Open Nuevo Centro. Jornada 2"]
[Site "Chess.com"]
[Date "2020.06.26"]
[Round "2"]
[White "Segarra Martinez, Axel"]
[Black "Zamora Soler, Raul"]
[Result "1-0"]
[WhiteElo "2168"]
[BlackElo "1768"]
[TimeControl "180+2"]
[EndTime "10:47:42 PDT"]
[Termination "Victoria de Alejandrosky por abandono"]

1. e4 {[%clk 0:03:00.1]} 1... c5 {[%clk 0:03:00.6]} 2. Nf3 {[%clk 0:03:01.5]}
2... Nc6 {[%clk 0:03:00.9]} 3. d4 {[%clk 0:03:02.9]} 3... cxd4 {[%clk
0:03:01.7]} 4. Nxd4 {[%clk 0:03:04.8]} 4... Nf6 {[%clk 0:03:02.4]} 5. Nc3 {[%clk
0:03:05.2]} 5... e6 {[%clk 0:03:03.3]} 6. a3 {[%clk 0:03:05.6]} 6... d5 {[%clk
0:03:01.8]} 7. exd5 {[%clk 0:03:04.7]} 7... Nxd5 {[%clk 0:03:01.2]} 8. Nxd5
{[%clk 0:03:03.3]} 8... Qxd5 {[%clk 0:03:01.6]} 9. Be3 {[%clk 0:03:04.6]} 9...
Nxd4 {[%clk 0:03:01.4]} 10. Bxd4 {[%clk 0:03:05.7]} 10... Qe4+ {[%clk
0:02:57.3]} 11. Be3 {[%clk 0:03:05.3]} 11... Bd7 {[%clk 0:02:55.7]} 12. Qd2
{[%clk 0:02:59.5]} 12... Bc5 {[%clk 0:02:45.6]} 13. O-O-O {[%clk 0:02:55.4]}
13... Bxe3 {[%clk 0:02:44.3]} 14. fxe3 {[%clk 0:02:57]} 14... Bc6 {[%clk
0:02:40.3]} 15. Bd3 {[%clk 0:02:46.4]} 15... Qxg2 {[%clk 0:02:40.3]} 16. Qxg2
{[%clk 0:02:47.2]} 16... Bxg2 {[%clk 0:02:40.7]} 17. Rhg1 {[%clk 0:02:49.1]}
17... Bc6 {[%clk 0:02:28.4]} 18. Rxg7 {[%clk 0:02:49]} 18... Ke7 {[%clk
0:02:09.5]} 19. Rf1 {[%clk 0:02:46.4]} 19... Raf8 {[%clk 0:02:09.4]} 20. Bxh7
{[%clk 0:02:43.1]} 20... Ke8 {[%clk 0:02:02.1]} 21. h4 {[%clk 0:02:39.2]} 21...
f5 {[%clk 0:01:47.8]} 22. Rd1 {[%clk 0:02:38.4]} 22... Rf6 {[%clk 0:01:28.5]}
23. h5 {[%clk 0:02:22.9]} 23... Kf8 {[%clk 0:01:01.5]} 24. Rc7 {[%clk
0:02:22.2]} 24... Rxh7 {[%clk 0:00:59.8]} 25. Rd8+ {[%clk 0:02:17.8]} 25... Be8
{[%clk 0:00:59.4]} 26. Rxh7 {[%clk 0:02:19.2]} 26... e5 {[%clk 0:00:58]} 27.
Rh8+ {[%clk 0:02:19.6]} 27... Ke7 {[%clk 0:00:59]} 28. Rhxe8+ {[%clk 0:02:20.2]}
28... Kf7 {[%clk 0:01:00.3]} 29. Rxe5 {[%clk 0:02:21.1]} 29... Rh6 {[%clk
0:01:00.5]} 30. Rxf5+ {[%clk 0:02:19.7]} 30... Ke7 {[%clk 0:01:01.3]} 31. Rb8
{[%clk 0:02:20.4]} 31... Ke6 {[%clk 0:01:02.4]} 32. e4 {[%clk 0:02:21.4]} 32...
Rh7 {[%clk 0:01:01.4]} 33. Kd2 {[%clk 0:02:21.1]} 33... a6 {[%clk 0:01:01.8]}
34. Ke3 {[%clk 0:02:22.3]} 1